bitfinex/quotes_BTCUSD_20240730
["timestamp","ask_amount","ask_price","bid_price","bid_amount"]
[1722339555610,0.0788,66775.0,66765.0,0.299555]
[1722339555611,0.1432,66770.0,66765.0,0.299555]
[1722339555814,0.292969,66770.0,66766.0,0.149775]
[1722339555931,0.292969,66770.0,66758.0,0.03004]
[1722339555932,0.20373098,66769.0,66757.0,0.00894407]
[1722339556138,0.20373098,66769.0,66749.0,0.42749743]
[1722339556139,0.0832,66762.0,66755.0,0.19976674]
[1722339556436,0.0625,66760.0,66755.0,0.19976674]
[1722339556740,0.04491009,66759.0,66755.0,0.19976674]
[1722339556872,0.04491009,66758.0,66757.0,0.449391]
[1722339557077,0.12986514,66760.0,66759.0,0.149792]
[1722339557078,0.10741009,66760.0,66759.0,0.149792]
[1722339557408,0.10741009,66760.0,66759.0,0.449377]
[1722339557409,0.0625,66760.0,66759.0,0.449377]
[1722339558582,0.0625,66760.0,66759.0,0.149792]
[1722339558783,0.04491009,66762.0,66761.0,0.449364]
[1722339559031,0.04486428,66766.0,66759.0,0.09487507]
[1722339559347,0.04486428,66766.0,66757.0,0.0666]
[1722339559348,0.04486428,66772.0,66771.0,0.149765]
[1722339559556,0.0607,66773.0,66772.0,0.149763]
[1722339560318,0.0607,66773.0,66771.0,0.149765]
[1722339560713,0.00081014,66772.0,66771.0,0.149765]
[1722339560935,0.00081014,66772.0,66770.0,0.299532]
[1722339560936,0.0607,66773.0,66770.0,0.149767]
[1722339561137,0.0015542,66772.0,66769.0,0.149768]
[1722339561339,0.0607,66773.0,66770.0,0.149766]
[1722339561538,0.01567318,66771.0,66770.0,0.149766]
[1722339562225,0.01567318,66771.0,66770.0,0.449301]
[1722339562427,0.01567318,66771.0,66770.0,0.748836]
[1722339562882,0.01567318,66771.0,66770.0,1.1532092]
[1722339564110,0.01567318,66771.0,66770.0,1.048371]
[1722339564909,0.37903,66778.0,66775.0,0.149755]
[1722339566282,0.52878,66778.0,66775.0,0.001]
[1722339566917,0.52878,66778.0,66775.0,0.150756]
[1722339566918,0.37903,66778.0,66775.0,0.150756]
[1722339567372,0.52878,66778.0,66775.0,0.001]
[1722339567848,0.04485668,66777.0,66775.0,0.001]
[1722339568081,0.04485668,66777.0,66775.0,0.150756]
[1722339568677,0.04485668,66777.0,66776.0,0.149754]
[1722339569225,0.37903,66778.0,66777.0,0.149752]
[1722339569423,0.30083,66778.0,66777.0,0.449256]
[1722339569645,0.30083,66778.0,66777.0,0.74876]
[1722339569850,0.30083,66778.0,66777.0,0.449256]
[1722339570222,0.30083,66778.0,66777.0,0.46058468]
[1722339570670,0.30083,66778.0,66777.0,0.46158468]
[1722339570868,0.30083,66778.0,66777.0,0.76108868]
[1722339571066,0.30083,66778.0,66777.0,0.46158468]
[1722339572775,0.30083,66778.0,66777.0,0.46058468]
[1722339573215,0.30083,66778.0,66777.0,0.46158468]
[1722339573576,0.30083,66778.0,66777.0,0.76108868]
[1722339574180,0.30083,66778.0,66777.0,0.88095805]
[1722339574413,0.30083,66778.0,66777.0,1.24166205]
[1722339574752,0.30083,66778.0,66777.0,0.82228868]
[1722339575702,0.30083,66778.0,66777.0,1.12179268]
[1722339576107,0.30083,66778.0,66777.0,0.82128868]
[1722339576419,0.30083,66778.0,66777.0,1.12079268]
[1722339577044,0.30083,66778.0,66777.0,0.82128868]
[1722339578417,0.30083,66778.0,66777.0,0.76008868]
[1722339579159,0.30083,66778.0,66777.0,1.05959268]
[1722339579990,0.30083,66778.0,66777.0,1.17945195]
[1722339580479,0.30083,66778.0,66777.0,0.76008868]
[1722339580919,0.30083,66778.0,66777.0,1.05959268]
[1722339581915,0.30083,66778.0,66777.0,1.63125569]
[1722339582330,0.30083,66778.0,66777.0,1.78188808]
[1722339582532,0.30083,66778.0,66777.0,1.88188808]
[1722339582733,0.30083,66778.0,66777.0,1.91192808]
[1722339583745,0.30083,66778.0,66777.0,1.92592808]
[1722339584163,0.30083,66778.0,66777.0,1.91192808]
[1722339584404,0.30083,66778.0,66777.0,1.61242408]
[1722339584562,0.30083,66778.0,66777.0,1.62642408]
[1722339584735,0.30083,66778.0,66777.0,1.92592808]
[1722339585144,0.00083,66778.0,66777.0,1.62592808]
[1722339586803,0.00083,66778.0,66777.0,1.65216404]
[1722339587146,0.00083,66778.0,66777.0,2.07612278]
[1722339587949,0.00083,66778.0,66777.0,1.92542846]
[1722339589474,0.00083,66778.0,66777.0,1.93431377]
[1722339590143,0.00083,66778.0,66777.0,1.80985903]
[1722339590398,0.00083,66778.0,66777.0,1.93431148]
[1722339590896,0.00083,66778.0,66777.0,1.93431138]
[1722339596757,0.00083,66778.0,66777.0,1.80985903]
[1722339596966,0.00083,66778.0,66777.0,1.93431114]
[1722339602396,0.00083,66778.0,66777.0,1.96055335]
[1722339602564,0.00083,66778.0,66777.0,2.08500525]
[1722339602767,0.00083,66778.0,66777.0,2.3241265]
[1722339603004,0.00083,66778.0,66777.0,2.57117449]
[1722339603360,0.00083,66778.0,66777.0,2.58117449]
[1722339603567,0.00083,66778.0,66777.0,2.57117449]
[1722339603768,0.00083,66778.0,66777.0,2.42048017]
[1722339604587,0.00083,66778.0,66777.0,2.17342541]
[1722339605285,0.00083,66778.0,66777.0,2.15942541]
[1722339605932,0.00083,66778.0,66777.0,2.45892973]
[1722339606137,0.00083,66778.0,66777.0,2.40647799]
[1722339606381,0.00083,66778.0,66777.0,2.55717231]
[1722339606551,0.00083,66778.0,66777.0,2.58717231]
[1722339606996,0.00083,66778.0,66777.0,2.60317231]
[1722339608972,0.00083,66778.0,66777.0,2.43044541]
[1722339609511,0.00083,66778.0,66777.0,2.45244541]
[1722339609711,0.00083,66778.0,66777.0,2.43044541]
[1722339609933,0.00083,66778.0,66777.0,2.45244541]
[1722339610351,0.00083,66778.0,66777.0,2.47544541]
[1722339610553,0.00083,66778.0,66777.0,2.61213973]
[1722339610959,0.00083,66778.0,66777.0,2.62613973]
[1722339611363,0.00083,66778.0,66777.0,2.92564373]
[1722339611534,0.00083,66778.0,66777.0,2.62613973]
[1722339611948,0.00083,66778.0,66777.0,2.62705273]
[1722339612156,0.00083,66778.0,66777.0,2.61547435]
[1722339612379,0.00083,66778.0,66777.0,2.92654988]
[1722339613260,1e-06,66778.0,66777.0,2.92654988]
[1722339613396,0.00844,66784.0,66783.0,1.707163]
[1722339613594,0.00844,66784.0,66783.0,2.64545671]
[1722339613816,0.00844,66784.0,66783.0,2.65611352]
[1722339614221,0.00844,66785.0,66784.0,1.849736]
[1722339614426,0.00844,66785.0,66784.0,2.63391657]
[1722339614626,0.00844,66785.0,66784.0,2.72251843]
[1722339614796,0.00844,66785.0,66784.0,2.87321275]
[1722339615424,0.00844,66785.0,66784.0,2.87321319]
[1722339615839,0.00844,66785.0,66784.0,2.88721319]
[1722339616839,0.00844,66785.0,66784.0,2.90921319]
[1722339617018,0.00844,66785.0,66784.0,2.88721319]
[1722339618274,0.00844,66785.0,66784.0,2.90921319]
[1722339618414,0.00844,66785.0,66784.0,2.88721319]
[1722339618620,0.00844,66785.0,66784.0,2.67617689]
[1722339618852,0.00844,66785.0,66784.0,2.98721427]
[1722339621590,0.00844,66785.0,66784.0,3.00921427]
[1722339621789,0.00844,66785.0,66784.0,2.98721427]
[1722339621987,0.00844,66785.0,66784.0,2.67617689]
[1722339622212,0.00844,66785.0,66784.0,3.00921349]
[1722339622573,0.00844,66785.0,66784.0,3.00921355]
[1722339623842,0.00844,66785.0,66784.0,3.01814285]
[1722339625158,0.0015542,66794.0,66791.0,1.851465]
[1722339625356,0.00844,66798.0,66791.0,2.94613943]
[1722339625577,0.00844,66798.0,66791.0,2.95675101]
[1722339627755,0.00844,66798.0,66791.0,2.97675101]
[1722339628368,0.00844,66798.0,66791.0,2.99075101]
[1722339628369,1e-08,66792.0,66791.0,2.99075101]
[1722339628607,0.00159582,66795.0,66794.0,2.008322]
[1722339628721,0.00159582,66795.0,66794.0,2.88742414]
[1722339628722,8.2e-07,66795.0,66794.0,2.88742414]
[1722339628921,8.2e-07,66795.0,66794.0,2.94275612]
[1722339629278,0.00844,66798.0,66797.0,0.06204]
[1722339629480,0.00844,66798.0,66797.0,1.33486196]
[1722339629682,0.00844,66798.0,66797.0,2.34368873]
[1722339629978,0.00844,66798.0,66797.0,2.96080187]
[1722339630121,0.00844,66798.0,66797.0,2.93880187]
[1722339630325,0.00844,66798.0,66797.0,2.93580873]
[1722339630530,0.00844,66798.0,66797.0,2.9882366]
[1722339630783,0.00844,66798.0,66797.0,2.74922386]
[1722339632215,0.00844,66798.0,66797.0,2.76787542]
[1722339632615,0.00844,66798.0,66797.0,2.76788026]
[1722339635362,0.00844,66798.0,66797.0,2.767882]
[1722339636205,0.00844,66798.0,66797.0,2.787882]
[1722339636563,0.00844,66798.0,66797.0,3.02691624]
[1722339636704,0.00844,66798.0,66797.0,2.767882]
[1722339637461,0.00844,66798.0,66797.0,3.00691374]
[1722339637593,0.00844,66798.0,66797.0,2.787882]
[1722339637792,0.00844,66798.0,66797.0,2.97447656]
[1722339638215,0.00844,66798.0,66797.0,2.95447656]
[1722339638406,0.00844,66798.0,66797.0,2.97447656]
[1722339638619,0.00844,66798.0,66797.0,2.66348551]
[1722339638812,0.00844,66798.0,66797.0,2.97446689]
[1722339639015,0.00844,66798.0,66797.0,2.97888509]
[1722339642022,0.00844,66798.0,66797.0,2.7942964]
[1722339642222,0.00844,66798.0,66797.0,2.98088544]
[1722339642755,0.00844,66798.0,66797.0,2.98088549]
[1722339644395,0.00844,66798.0,66797.0,2.98089007]
[1722339645221,0.00844,66798.0,66797.0,2.66990371]
[1722339645415,0.00844,66798.0,66797.0,2.98089087]
[1722339647349,0.00844,66798.0,66797.0,2.86539087]
[1722339648679,0.00844,66798.0,66797.0,2.86537759]
[1722339649169,0.00844,66798.0,66797.0,2.98047759]
[1722339650248,1e-08,66798.0,66797.0,2.98047759]
[1722339651057,0.00844,66805.0,66802.0,1.708696]
[1722339651263,0.00844,66805.0,66802.0,2.46363442]
[1722339651921,0.00844,66805.0,66802.0,2.15266054]
[1722339652215,0.00844,66805.0,66802.0,2.47763045]
[1722339652897,0.00844,66805.0,66802.0,2.45563045]
[1722339654058,0.00844,66805.0,66802.0,2.47563045]
[1722339654262,0.00844,66805.0,66802.0,2.45563064]
[1722339657151,0.00844,66805.0,66802.0,2.60093064]
[1722339657935,0.00844,66805.0,66802.0,2.62293064]
[1722339658953,0.00844,66805.0,66802.0,2.60093064]
[1722339659395,0.00844,66805.0,66802.0,2.62293064]
[1722339659855,0.00844,66805.0,66802.0,2.60093064]
[1722339660060,0.00844,66805.0,66802.0,2.61018599]
[1722339660686,0.00844,66805.0,66802.0,2.31419167]
[1722339661298,0.00844,66805.0,66802.0,2.31419662]
[1722339661915,0.00844,66805.0,66802.0,2.14761159]
[1722339662071,0.00844,66805.0,66802.0,2.33419662]
[1722339662944,0.00844,66805.0,66802.0,2.33619662]
[1722339663125,0.00844,66805.0,66802.0,2.48689094]
[1722339664118,0.00844,66805.0,66802.0,2.46489094]
[1722339664577,0.00844,66805.0,66802.0,1.98180462]
[1722339664578,0.14944,66803.0,66802.0,1.98180462]
[1722339666173,0.00844,66803.0,66802.0,2.02661621]
[1722339667001,0.00844,66803.0,66802.0,2.32600821]
[1722339667199,0.00844,66803.0,66802.0,2.45830821]
[1722339667355,0.00844,66803.0,66802.0,2.32244144]
[1722339667551,0.00844,66803.0,66802.0,2.56618671]
[1722339668007,0.00844,66803.0,66802.0,2.63341528]
[1722339668254,0.00844,66803.0,66802.0,2.89833553]
[1722339668425,0.00844,66803.0,66802.0,2.98797363]
[1722339668639,0.00844,66803.0,66802.0,2.89833553]
[1722339668845,0.00844,66803.0,66802.0,2.87633553]
[1722339669045,0.00844,66803.0,66802.0,2.89833553]
[1722339669527,0.00844,66803.0,66802.0,2.98797363]
[1722339669930,0.00844,66803.0,66802.0,2.89833553]
[1722339670123,0.00844,66803.0,66802.0,2.98797363]
[1722339670328,0.00844,66803.0,66802.0,2.9880183]
[1722339670642,0.00844,66803.0,66802.0,2.89833553]
[1722339670844,0.00844,66803.0,66802.0,2.96601272]
[1722339671208,0.00844,66803.0,66802.0,3.04281272]
[1722339671410,0.00844,66803.0,66802.0,2.97513052]
[1722339671853,0.00844,66803.0,66802.0,3.08723977]
[1722339672054,0.00844,66803.0,66802.0,3.08723923]
[1722339672461,0.00844,66803.0,66802.0,3.08724853]
[1722339672779,0.00844,66803.0,66802.0,3.08724797]
[1722339673186,0.00844,66803.0,66802.0,2.97512483]
[1722339673417,0.00844,66803.0,66802.0,3.08721022]
[1722339674085,0.00844,66803.0,66802.0,3.087172]
[1722339675481,0.00844,66803.0,66802.0,3.147672]
[1722339677455,0.00844,66803.0,66802.0,3.12567862]
[1722339677594,0.00844,66803.0,66802.0,3.01362477]
[1722339677791,0.00844,66803.0,66802.0,3.03562477]
[1722339678117,0.00844,66803.0,66802.0,3.09781571]
[1722339679335,0.00844,66805.0,66804.0,1.849446]
[1722339679615,0.06742939,66828.0,66804.0,1.849446]
[1722339679616,0.0629,66835.0,66822.0,0.758255]
[1722339679946,0.0629,66827.0,66822.0,2.37694213]
[1722339680162,0.0629,66827.0,66822.0,2.36694213]
[1722339680434,0.0629,66827.0,66822.0,2.38892422]
[1722339680630,0.0666,66832.0,66822.0,2.09391311]
[1722339680946,0.0666,66832.0,66822.0,2.84631574]
[1722339681182,0.0666,66832.0,66822.0,2.77082302]
[1722339681384,0.0666,66832.0,66822.0,3.28465602]
[1722339681590,0.0666,66832.0,66822.0,3.17281432]
[1722339681759,0.00844,66836.0,66833.0,1.376678]
[1722339681970,0.00844,66836.0,66833.0,2.05091408]
[1722339682186,0.00844,66836.0,66835.0,1.376638]
[1722339682381,0.00844,66836.0,66835.0,1.82842108]
[1722339682591,0.00844,66836.0,66835.0,1.84795927]
[1722339682759,0.15174,66836.0,66835.0,1.54871527]
[1722339682922,0.15174,66836.0,66835.0,0.99199823]
[1722339683130,0.600598,66836.0,66835.0,0.01953819]
[1722339683348,0.362062,66831.0,66822.0,0.014]
[1722339683675,0.00844,66836.0,66823.0,0.0015542]
[1722339683676,0.1407,66825.0,66823.0,0.0015542]
[1722339683842,0.0768,66823.0,66816.0,0.0015542]
[1722339684048,0.1421,66821.0,66816.0,0.0015542]
[1722339684269,0.0796,66819.0,66817.0,0.01529489]
[1722339684471,0.0768,66823.0,66814.0,0.0015542]
[1722339684472,0.149666,66815.0,66814.0,0.0015542]
[1722339684669,0.299333,66815.0,66800.0,0.0015542]
[1722339684874,0.1344,66804.0,66800.0,0.0015542]
[1722339685080,0.1344,66805.0,66802.0,0.149695]
[1722339685255,0.0545,66805.0,66803.0,0.149692]
[1722339685461,0.0545,66805.0,66804.0,0.0015542]
[1722339685686,0.0545,66805.0,66804.0,0.1512452]
[1722339685890,0.0545,66805.0,66804.0,0.16390065]
[1722339686065,0.1317,66805.0,66804.0,0.76266665]
[1722339686261,0.1317,66805.0,66804.0,0.87655382]
[1722339686464,0.1317,66805.0,66804.0,1.17593682]
[1722339687017,0.1317,66805.0,66804.0,1.18645781]
[1722339687150,0.1317,66805.0,66804.0,1.06204965]
[1722339689546,0.1317,66805.0,66804.0,1.19645785]
[1722339689862,0.1317,66805.0,66804.0,1.07204965]
[1722339691464,0.1317,66805.0,66804.0,1.22268269]
[1722339691685,0.1433,66819.0,66817.0,0.14966]
[1722339691868,0.1433,66817.0,66814.0,0.149668]
[1722339692082,0.1433,66817.0,66814.0,0.149667]
[1722339692083,0.0657,66817.0,66814.0,0.149667]
[1722339692283,0.1433,66816.0,66815.0,0.0015542]
[1722339692487,0.149663,66817.0,66814.0,0.149668]
[1722339692689,0.299317,66819.0,66814.0,0.149668]
[1722339692690,0.1414,66815.0,66814.0,0.149668]
[1722339692846,0.0806,66817.0,66811.0,0.29935]
[1722339693048,0.1414,66816.0,66813.0,0.149669]
[1722339693259,0.299323,66818.0,66812.0,0.299347]
[1722339693260,0.0806,66818.0,66812.0,0.299347]
[1722339693575,0.1409,66814.0,66813.0,0.14967]
[1722339694575,0.1457,66813.0,66812.0,0.299345]
[1722339694785,0.1457,66813.0,66812.0,0.449018]
[1722339694981,0.1457,66813.0,66812.0,0.42553199]
[1722339697089,0.1457,66813.0,66812.0,0.1512272]
[1722339697413,0.1457,66813.0,66812.0,0.4505742]
[1722339697622,0.1457,66813.0,66812.0,0.44902]
[1722339697958,0.149663,66817.0,66811.0,0.1]
[1722339697959,0.231373,66812.0,66811.0,0.1]
[1722339698183,0.59472,66812.0,66811.0,0.1]
[1722339699713,0.59472,66812.0,66811.0,0.102]
[1722339700152,0.295373,66812.0,66811.0,0.102]
[1722339702341,0.59472,66812.0,66811.0,0.102]
[1722339703495,0.295373,66812.0,66811.0,0.102]
[1722339703694,0.59472,66812.0,66811.0,0.102]
[1722339705223,0.59472,66812.0,66811.0,0.11633465]
[1722339705224,0.894067,66812.0,66811.0,0.11633465]
[1722339706229,1.3127534,66812.0,66811.0,0.11633465]
[1722339706460,1.3127534,66812.0,66811.0,0.102]
[1722339707707,1.193414,66812.0,66811.0,0.102]
[1722339713573,0.894067,66812.0,66811.0,0.102]
[1722339716912,0.90339949,66812.0,66811.0,0.102]
[1722339718107,0.894067,66812.0,66811.0,0.102]
[1722339720295,0.59472,66812.0,66811.0,0.102]
[1722339721737,0.894067,66812.0,66811.0,0.102]
[1722339724778,0.894067,66812.0,66811.0,0.07851287]
[1722339725416,0.9033995,66812.0,66811.0,0.07851287]
[1722339725611,0.894067,66812.0,66811.0,0.07851287]
[1722339726296,0.90339949,66812.0,66811.0,0.07851287]
[1722339726679,0.894067,66812.0,66811.0,0.07851287]
[1722339727150,0.90339954,66812.0,66811.0,0.07851287]
[1722339727465,0.90339972,66812.0,66811.0,0.07851287]
[1722339727720,0.97063486,66812.0,66811.0,0.07851287]
[1722339727944,0.894067,66812.0,66811.0,0.07851287]
[1722339730577,1.00633197,66812.0,66811.0,0.07851287]
[1722339731452,1.03330009,66812.0,66811.0,0.07851287]
[1722339732914,0.894067,66812.0,66811.0,0.07851287]
[1722339733565,0.90339922,66812.0,66811.0,0.07851287]
[1722339733760,0.894067,66812.0,66811.0,0.07851287]
[1722339734367,0.90339921,66812.0,66811.0,0.07851287]
[1722339734572,0.60405221,66812.0,66811.0,0.07851287]
[1722339734776,0.12129507,66815.0,66813.0,0.0823]
[1722339734777,0.06735326,66814.0,66813.0,0.0823]
[1722339734978,0.06735326,66814.0,66813.0,0.62669946]
[1722339735205,0.06735326,66815.0,66814.0,0.449007]
[1722339735605,0.06735326,66815.0,66814.0,0.46335702]
[1722339736596,0.06735326,66815.0,66814.0,0.16401902]
[1722339736837,0.06735326,66815.0,66814.0,0.16557322]
[1722339737034,0.06735326,66815.0,66814.0,0.16401902]
[1722339737807,0.06735326,66815.0,66814.0,0.01435002]
[1722339737976,0.08980868,66815.0,66814.0,0.01435002]
[1722339738197,0.08980868,66816.0,66814.0,0.01590422]
[1722339738357,0.08980868,66816.0,66814.0,0.16557122]
[1722339738567,0.08980868,66816.0,66814.0,0.16401702]
[1722339738724,0.08980868,66816.0,66815.0,0.4505532]
[1722339738926,0.00083,66817.0,66816.0,0.149664]
[1722339739127,0.09064707,66817.0,66816.0,0.149664]
[1722339739445,0.00083,66817.0,66816.0,0.16401291]
[1722339739623,0.09065064,66817.0,66816.0,0.16401291]
[1722339740257,0.00083,66817.0,66816.0,0.16401291]
[1722339740885,0.09065309,66817.0,66816.0,0.16556711]
[1722339741059,0.09065309,66817.0,66816.0,0.01434891]
[1722339741491,0.09065309,66817.0,66816.0,0.16556711]
[1722339741719,0.09065309,66817.0,66816.0,0.149664]
[1722339741871,0.09065309,66817.0,66816.0,0.16555644]
[1722339742080,0.00083,66817.0,66816.0,0.46488544]
[1722339742423,0.09065585,66817.0,66816.0,0.16555644]
[1722339742821,0.09065903,66817.0,66816.0,0.16400224]
[1722339742998,0.09065903,66817.0,66816.0,0.16555644]
[1722339743208,0.09065903,66817.0,66816.0,0.16400224]
[1722339743813,0.09065903,66817.0,66816.0,0.46488544]
[1722339743977,0.17195903,66817.0,66816.0,0.01589244]
[1722339744397,0.17195997,66817.0,66816.0,0.01589244]
[1722339744619,0.09065997,66817.0,66816.0,0.16555644]
[1722339744814,0.17826141,66817.0,66816.0,0.16400224]
[1722339745219,0.17826141,66817.0,66816.0,0.01433824]
[1722339745440,0.32792341,66817.0,66816.0,0.01589244]
[1722339745651,0.17826141,66817.0,66816.0,0.01589244]
[1722339745860,0.17826141,66817.0,66816.0,0.01433824]
[1722339745861,0.11311746,66817.0,66816.0,0.01433824]
[1722339746059,0.00083,66817.0,66815.0,0.149666]
[1722339746255,0.0768,66816.0,66815.0,0.149666]
[1722339746494,0.0768,66816.0,66815.0,0.1512202]
[1722339746845,0.0768,66816.0,66815.0,0.149666]
[1722339747048,0.0768,66816.0,66815.0,0.1512202]
[1722339747499,0.0768,66816.0,66815.0,0.149666]
[1722339747651,0.0768,66816.0,66815.0,0.1512202]
[1722339748056,0.0768,66816.0,66815.0,0.0015542]
[1722339748259,0.0768,66816.0,66814.0,0.149668]
[1722339748463,0.09065833,66817.0,66816.0,0.149664]
[1722339748868,0.09065533,66817.0,66816.0,0.149664]
[1722339749071,0.09065533,66817.0,66816.0,0.1512182]
[1722339749267,0.09065533,66817.0,66816.0,0.4505472]
[1722339749470,0.09065533,66817.0,66816.0,0.149664]
[1722339749648,0.00083,66817.0,66816.0,0.149664]
[1722339749855,0.09065412,66817.0,66816.0,0.2298182]
[1722339750090,0.09065412,66817.0,66816.0,0.54347518]
[1722339750267,0.09065412,66817.0,66816.0,0.54192098]
[1722339750771,0.09065412,66817.0,66816.0,0.24259198]
[1722339751039,0.09065412,66817.0,66816.0,0.46332098]
[1722339751589,0.09065412,66817.0,66816.0,0.16399198]
[1722339752017,0.09065412,66817.0,66816.0,0.01432798]
[1722339752219,0.09065412,66817.0,66816.0,0.01588218]
[1722339752421,0.00083,66817.0,66816.0,0.01588218]
[1722339752974,0.00083,66817.0,66816.0,0.16554618]
[1722339753909,0.09064564,66817.0,66816.0,0.01432798]
[1722339754370,0.24030764,66817.0,66816.0,0.01432798]
[1722339754604,0.00083,66817.0,66816.0,0.01432798]
[1722339754749,0.2627563,66817.0,66816.0,0.01432798]
[1722339754957,0.150492,66817.0,66816.0,0.01432798]
[1722339755416,0.150492,66817.0,66814.0,0.0015542]
[1722339755617,0.08981375,66815.0,66814.0,0.0015542]
[1722339755973,0.08981375,66815.0,66813.0,0.1512252]
[1722339756475,0.08981375,66815.0,66813.0,0.0015542]
[1722339756913,0.08981375,66815.0,66813.0,0.1512252]
[1722339757566,0.22342871,66814.0,66812.0,0.00146696]
[1722339757743,0.06736233,66813.0,66812.0,0.00146696]
[1722339757941,0.14416233,66813.0,66812.0,0.00146696]
[1722339758153,0.16661375,66813.0,66811.0,0.07742587]
[1722339758360,0.18523722,66812.0,66811.0,0.07742587]
[1722339758754,0.18523889,66812.0,66811.0,0.07742587]
[1722339758961,0.86624141,66812.0,66811.0,0.07742587]
[1722339759203,0.94644141,66812.0,66811.0,0.07742587]
[1722339759449,1.02324141,66812.0,66811.0,0.07742587]
[1722339759841,1.32258841,66812.0,66811.0,0.07742587]
[1722339761220,1.32258841,66812.0,66811.0,0.07942587]
[1722339762231,1.82436776,66812.0,66811.0,0.07942587]
[1722339762431,1.88500065,66812.0,66811.0,0.07942587]
[1722339762654,1.83803541,66812.0,66811.0,0.01821317]
[1722339762962,1.522801,66805.0,66788.0,0.0015542]
[1722339763128,1.89434032,66805.0,66788.0,0.0015542]
[1722339763335,2.03274032,66805.0,66788.0,0.0015542]
[1722339763538,1.89802973,66805.0,66788.0,0.0015542]
[1722339764685,1.89802997,66805.0,66788.0,0.0015542]
[1722339765127,1.87802997,66805.0,66788.0,0.0015542]
[1722339765356,1.87802997,66805.0,66795.0,0.0625]
[1722339765535,1.87802997,66805.0,66796.0,0.0015542]
[1722339765536,1.69582997,66805.0,66796.0,0.0015542]
[1722339765702,1.79865499,66805.0,66796.0,0.0015542]
[1722339765903,1.79865499,66805.0,66795.0,0.0625]
[1722339766529,1.78865499,66805.0,66796.0,0.0015542]
[1722339766675,1.78865499,66805.0,66795.0,0.0625]
[1722339766872,1.78865499,66805.0,66796.0,0.0015542]
[1722339767323,1.78865499,66805.0,66795.0,0.0625]
[1722339768170,1.127023,66805.0,66795.0,0.0625]
[1722339768584,1.127023,66805.0,66796.0,0.0015542]
[1722339768777,1.127023,66805.0,66795.0,0.0625]
[1722339768979,1.14269499,66805.0,66796.0,0.0015542]
[1722339769138,1.15179626,66805.0,66796.0,0.0015542]
[1722339769846,1.24149283,66805.0,66796.0,0.0015542]
[1722339770427,1.26391697,66805.0,66796.0,0.0015542]
[1722339770634,1.15179626,66805.0,66795.0,0.0625]
[1722339770846,1.2940857,66805.0,66795.0,0.0625]
[1722339771063,1.2940857,66805.0,66796.0,0.0015542]
[1722339771064,1.18196499,66805.0,66796.0,0.0015542]
[1722339771431,1.2940857,66805.0,66796.0,0.0015542]
[1722339771590,1.18196499,66805.0,66795.0,0.0625]
[1722339771794,1.18196499,66805.0,66796.0,0.0015542]
[1722339772009,1.27163324,66805.0,66796.0,0.0015542]
[1722339772211,1.27163292,66805.0,66796.0,0.0015542]
[1722339772612,1.18196499,66805.0,66796.0,0.0015542]
[1722339772818,1.29404169,66805.0,66796.0,0.0015542]
[1722339773194,1.29404169,66805.0,66795.0,0.0625]
[1722339773432,1.18196499,66805.0,66795.0,0.0625]
[1722339773631,1.18196499,66805.0,66792.0,0.0627]
[1722339773632,1.53434299,66805.0,66792.0,0.0627]
[1722339773833,1.54367725,66805.0,66792.0,0.0627]
[1722339774170,1.54367725,66805.0,66790.0,0.1438]
[1722339774171,1.60807725,66805.0,66790.0,0.1438]
[1722339774305,1.60807725,66805.0,66791.0,0.0015542]
[1722339775322,1.60807764,66805.0,66791.0,0.0015542]
[1722339778771,1.60807726,66805.0,66791.0,0.0015542]
[1722339779138,1.58807726,66805.0,66791.0,0.0015542]
[1722339779339,1.57874299,66805.0,66798.0,0.063913]
[1722339779785,1.65593234,66805.0,66798.0,0.063913]
[1722339779988,1.64593234,66805.0,66798.0,0.063913]
[1722339780394,1.43916342,66805.0,66798.0,0.063913]
[1722339780808,1.37197426,66805.0,66798.0,0.063913]
[1722339780955,0.54102474,66805.0,66804.0,0.147413]
[1722339781157,0.16536099,66805.0,66804.0,0.147413]
[1722339781360,0.76411699,66805.0,66804.0,0.147413]
[1722339781766,1.1541714,66805.0,66804.0,0.147413]
[1722339781991,0.8547934,66805.0,66804.0,0.147413]
[1722339784042,0.07645833,66811.0,66810.0,0.299356]
[1722339784043,0.06718563,66811.0,66810.0,0.299356]
[1722339784246,0.621794,66817.0,66811.0,0.0611]
[1722339784247,0.47213,66817.0,66811.0,0.0611]
[1722339784446,0.299334,66815.0,66812.0,0.0015542]
[1722339784646,0.449013,66813.0,66812.0,0.0015542]
[1722339784864,0.449013,66813.0,66812.0,0.01492218]
[1722339784865,1.047697,66813.0,66812.0,0.01492218]
[1722339785078,0.0641,66815.0,66806.0,0.0767]
[1722339785079,0.449053,66807.0,66806.0,0.0767]
[1722339785279,0.748422,66807.0,66806.0,0.0767]
[1722339785484,0.8531999,66807.0,66806.0,0.0767]
[1722339787045,0.5538309,66807.0,66806.0,0.0767]
[1722339787246,0.5538309,66807.0,66806.0,0.09006124]
[1722339787446,0.5538309,66807.0,66806.0,0.0767]
[1722339787887,0.2544619,66807.0,66806.0,0.0767]
[1722339788451,0.449053,66807.0,66806.0,0.0767]
[1722339788882,0.449053,66807.0,66806.0,0.09006124]
[1722339790396,0.449053,66807.0,66806.0,0.0767]
[1722339790956,0.00926251,66811.0,66805.0,0.0652]
[1722339790957,0.449061,66806.0,66805.0,0.0652]
[1722339791152,0.748435,66806.0,66805.0,0.0652]
[1722339791392,0.83896216,66806.0,66805.0,0.0652]
[1722339793300,0.83896216,66806.0,66805.0,0.0785396]
[1722339793469,0.83896216,66806.0,66805.0,0.0652]
[1722339793660,0.53958816,66806.0,66805.0,0.0652]
[1722339794890,0.09052716,66806.0,66805.0,0.0652]
[1722339795086,0.06723844,66811.0,66807.0,0.0015542]
[1722339795240,0.299344,66813.0,66808.0,0.0615]
[1722339795445,0.299344,66813.0,66809.0,0.0015542]
[1722339795641,0.449034,66810.0,66809.0,0.01489157]
[1722339795853,0.149676,66811.0,66809.0,0.01489157]
[1722339796078,0.149678,66810.0,66809.0,0.01489157]
[1722339796279,0.149675,66812.0,66809.0,0.01489157]
[1722339796479,0.21691044,66813.0,66811.0,0.0015542]
[1722339796674,0.149673,66812.0,66811.0,0.0834542]
[1722339797053,0.149669,66814.0,66811.0,0.0819]
[1722339797339,0.149665,66816.0,66812.0,0.0642]
[1722339797553,0.47213,66817.0,66813.0,0.14967]